[Event "*** Titled Tuesday Blitz"]
[Site "Chess.com"]
[Date "2018.12.04"]
[Round "5"]
[White "Mikhail_Golubev"]
[Black "NTDVAN"]
[Result "0-1"]
[WhiteElo "2466"]
[BlackElo "2643"]
[TimeControl "180+2"]
[EndTime "14:06:18 PST"]
[Termination "NTDVAN won by checkmate"]

1. e4 {[%clk 0:03:01.9]} 1... c5 {[%clk 0:02:59.4]} 2. Nf3 {[%clk 0:03:02.2]}
2... d6 {[%clk 0:03:00.8]} 3. d4 {[%clk 0:03:03.2]} 3... cxd4 {[%clk 0:03:02.7]}
4. Nxd4 {[%clk 0:03:04.3]} 4... Nf6 {[%clk 0:03:04.4]} 5. Nc3 {[%clk 0:03:05.2]}
5... a6 {[%clk 0:03:06.1]} 6. Bc4 {[%clk 0:03:05.3]} 6... e6 {[%clk 0:03:05.8]}
7. Bb3 {[%clk 0:03:05.8]} 7... Nbd7 {[%clk 0:03:06.9]} 8. f4 {[%clk 0:03:06.8]}
8... Nc5 {[%clk 0:03:08.2]} 9. O-O {[%clk 0:03:07.5]} 9... Nfxe4 {[%clk
0:03:03.7]} 10. Nxe4 {[%clk 0:03:07.8]} 10... Nxe4 {[%clk 0:03:05.6]} 11. f5
{[%clk 0:03:08.6]} 11... e5 {[%clk 0:03:05.8]} 12. Qh5 {[%clk 0:03:09.1]} 12...
Qe7 {[%clk 0:02:51.1]} 13. Qf3 {[%clk 0:03:00.8]} 13... Nf6 {[%clk 0:02:14.5]}
14. Bg5 {[%clk 0:02:52.8]} 14... h6 {[%clk 0:01:40.6]} 15. Bh4 {[%clk
0:02:52.9]} 15... Qc7 {[%clk 0:01:37.6]} 16. Bxf6 {[%clk 0:02:53.2]} 16... gxf6
{[%clk 0:01:39.5]} 17. Ne2 {[%clk 0:02:51.5]} 17... Bd7 {[%clk 0:01:35]} 18. Nc3
{[%clk 0:02:36.7]} 18... Qc5+ {[%clk 0:01:35.7]} 19. Kh1 {[%clk 0:02:35.3]}
19... Bc6 {[%clk 0:01:36.6]} 20. Nd5 {[%clk 0:02:18]} 20... O-O-O {[%clk
0:01:37.2]} 21. c3 {[%clk 0:02:01.1]} 21... h5 {[%clk 0:01:36.7]} 22. a4 {[%clk
0:01:46.2]} 22... h4 {[%clk 0:01:37.1]} 23. Rad1 {[%clk 0:01:30.7]} 23... h3
{[%clk 0:01:36.2]} 24. g3 {[%clk 0:01:31.7]} 24... Bh6 {[%clk 0:01:36.4]} 25.
Rfe1 {[%clk 0:01:32]} 25... Bg5 {[%clk 0:01:37.1]} 26. Re4 {[%clk 0:01:32]}
26... Kb8 {[%clk 0:01:34.1]} 27. Ba2 {[%clk 0:01:23.6]} 27... Qa7 {[%clk
0:01:14.1]} 28. a5 {[%clk 0:01:12.3]} 28... Rc8 {[%clk 0:01:10.7]} 29. b4 {[%clk
0:01:10.8]} 29... Bxd5 {[%clk 0:01:06.5]} 30. Bxd5 {[%clk 0:01:08.4]} 30... Rc7
{[%clk 0:01:07.6]} 31. c4 {[%clk 0:01:07.5]} 31... Rhc8 {[%clk 0:01:08.1]} 32.
Rb1 {[%clk 0:01:05.2]} 32... b5 {[%clk 0:00:59.5]} 33. axb6 {[%clk 0:01:01.7]}
33... Qxb6 {[%clk 0:01:00.7]} 34. Qd3 {[%clk 0:00:30.9]} 34... Ka7 {[%clk
0:01:01.1]} 35. c5 {[%clk 0:00:24.1]} 35... dxc5 {[%clk 0:01:02.5]} 36. bxc5
{[%clk 0:00:24.6]} 36... Qxc5 {[%clk 0:01:03.9]} 37. Rc4 {[%clk 0:00:15.2]}
37... Qf2 {[%clk 0:00:46]} 38. Rxc7+ {[%clk 0:00:05]} 38... Rxc7 {[%clk
0:00:47.9]} 39. Bc4 {[%clk 0:00:03.3]} 39... Qg2# {[%clk 0:00:48.1]} 0-1

[Event "*** Titled Tuesday Blitz"]
[Site "Chess.com"]
[Date "2018.12.04"]
[Round "5"]
[White "Alexander_Moskalenko"]
[Black "FearNoEvil12"]
[Result "1-0"]
[WhiteElo "2827"]
[BlackElo "1979"]
[TimeControl "180+2"]
[EndTime "14:06:19 PST"]
[Termination "Alexander_Moskalenko won by resignation"]

1. c4 {[%clk 0:02:51]} 1... Nf6 {[%clk 0:02:59.5]} 2. Nc3 {[%clk 0:02:52.9]}
2... g6 {[%clk 0:03:00.7]} 3. d4 {[%clk 0:02:53.5]} 3... Bg7 {[%clk 0:03:02.2]}
4. e4 {[%clk 0:02:55.1]} 4... d6 {[%clk 0:03:03.7]} 5. f3 {[%clk 0:02:56.8]}
5... O-O {[%clk 0:03:02]} 6. Nge2 {[%clk 0:02:58.7]} 6... c5 {[%clk 0:03:01.3]}
7. d5 {[%clk 0:02:59.4]} 7... a6 {[%clk 0:03:00.6]} 8. Bg5 {[%clk 0:02:55.6]}
8... h6 {[%clk 0:03:00.2]} 9. Bh4 {[%clk 0:02:56.5]} 9... g5 {[%clk 0:03:00.5]}
10. Bf2 {[%clk 0:02:56.6]} 10... e6 {[%clk 0:03:01.1]} 11. a4 {[%clk 0:02:56.7]}
11... exd5 {[%clk 0:03:00.3]} 12. cxd5 {[%clk 0:02:58.6]} 12... Re8 {[%clk
0:03:00.1]} 13. Ng3 {[%clk 0:02:56.5]} 13... Nbd7 {[%clk 0:02:53.5]} 14. Be2
{[%clk 0:02:57.4]} 14... Ne5 {[%clk 0:02:54.3]} 15. O-O {[%clk 0:02:57.6]} 15...
h5 {[%clk 0:02:50.3]} 16. Re1 {[%clk 0:02:58.3]} 16... h4 {[%clk 0:02:50.5]} 17.
Nf1 {[%clk 0:02:59.4]} 17... Nh5 {[%clk 0:02:49.4]} 18. Ne3 {[%clk 0:02:56.1]}
18... Nf4 {[%clk 0:02:48.3]} 19. Bf1 {[%clk 0:02:56.2]} 19... Qf6 {[%clk
0:02:39.3]} 20. a5 {[%clk 0:02:53]} 20... Qg6 {[%clk 0:02:35.5]} 21. h3 {[%clk
0:02:52.7]} 21... Kh8 {[%clk 0:02:26]} 22. Ng4 {[%clk 0:02:52.8]} 22... Bxg4
{[%clk 0:02:24.9]} 23. hxg4 {[%clk 0:02:54.7]} 23... Bf6 {[%clk 0:02:19.9]} 24.
Be3 {[%clk 0:02:54.9]} 24... Kg7 {[%clk 0:02:18.9]} 25. Qd2 {[%clk 0:02:56.1]}
25... Qh6 {[%clk 0:02:06]} 26. Ne2 {[%clk 0:02:49.7]} 26... Neg6 {[%clk
0:02:05.4]} 27. Nxf4 {[%clk 0:02:49.9]} 27... gxf4 {[%clk 0:02:05]} 28. Bf2
{[%clk 0:02:50.7]} 28... Rh8 {[%clk 0:02:00.6]} 29. Ra3 {[%clk 0:02:47.1]} 29...
Ne5 {[%clk 0:02:00.8]} 30. b4 {[%clk 0:02:47.7]} 30... cxb4 {[%clk 0:01:54.6]}
31. Qxb4 {[%clk 0:02:48.5]} 31... Rac8 {[%clk 0:01:37.5]} 32. Qxd6 {[%clk
0:02:46.9]} 32... Rc2 {[%clk 0:01:36.2]} 33. Qb6 {[%clk 0:02:34.5]} 33... h3
{[%clk 0:01:27.6]} 34. gxh3 {[%clk 0:02:35.5]} 34... Ng6 {[%clk 0:01:13.4]} 35.
Bd4 {[%clk 0:02:20.5]} 35... Bxd4+ {[%clk 0:01:07.4]} 36. Qxd4+ {[%clk
0:02:22.4]} 36... Kg8 {[%clk 0:01:03]} 37. Rc3 {[%clk 0:02:07.1]} 37... Rxc3
{[%clk 0:00:57.8]} 38. Qxc3 {[%clk 0:02:09]} 38... Qh4 {[%clk 0:00:58.4]} 39.
Bg2 {[%clk 0:02:04]} 39... Qg3 {[%clk 0:00:53.9]} 40. Kf1 {[%clk 0:02:05.1]}
40... Nh4 {[%clk 0:00:51]} 41. Re2 {[%clk 0:02:06]} 41... Nxg2 {[%clk 0:00:47]}
42. Rxg2 {[%clk 0:02:07.9]} 42... Qxh3 {[%clk 0:00:47.3]} 43. Kf2 {[%clk
0:02:04.5]} 43... Qh4+ {[%clk 0:00:46.5]} 44. Ke2 {[%clk 0:02:05]} 44... Qh1
{[%clk 0:00:38.5]} 45. Rf2 {[%clk 0:02:06.1]} 45... Rh2 {[%clk 0:00:33.4]} 46.
Rxh2 {[%clk 0:02:05.5]} 46... Qxh2+ {[%clk 0:00:34.4]} 47. Kd3 {[%clk 0:02:06]}
47... Qf2 {[%clk 0:00:29.3]} 48. Kc4 {[%clk 0:02:07.1]} 48... Qa2+ {[%clk
0:00:25.9]} 49. Kc5 {[%clk 0:02:07.3]} 49... Qa4 {[%clk 0:00:22.5]} 50. Kd6
{[%clk 0:02:03.3]} 50... Kh7 {[%clk 0:00:18.1]} 51. Ke7 {[%clk 0:02:02.7]} 51...
Kg8 {[%clk 0:00:10.6]} 52. Qc8+ {[%clk 0:02:01.9]} 52... Kh7 {[%clk 0:00:10.3]}
53. Qf5+ {[%clk 0:02:03.3]} 53... Kh8 {[%clk 0:00:09.6]} 54. Qf6+ {[%clk
0:02:04.7]} 54... Kg8 {[%clk 0:00:10.3]} 55. Qxf7+ {[%clk 0:02:06.6]} 55... Kh8
{[%clk 0:00:11.4]} 56. Qf8+ {[%clk 0:02:08]} 56... Kh7 {[%clk 0:00:12.4]} 57.
Qf5+ {[%clk 0:02:08.5]} 57... Kh8 {[%clk 0:00:13]} 58. d6 {[%clk 0:02:09.2]}
58... Qc4 {[%clk 0:00:11.3]} 59. Qxf4 {[%clk 0:02:08.2]} 59... Qc8 {[%clk
0:00:09.9]} 60. Qf8+ {[%clk 0:02:08]} 1-0

[Event "*** Titled Tuesday Blitz"]
[Site "Chess.com"]
[Date "2018.12.04"]
[Round "5"]
[White "grzechu96"]
[Black "anesar92"]
[Result "1-0"]
[WhiteElo "2548"]
[BlackElo "2660"]
[TimeControl "180+2"]
[EndTime "14:06:20 PST"]
[Termination "grzechu96 won by resignation"]

1. e4 {[%clk 0:03:01.9]} 1... e6 {[%clk 0:02:59.3]} 2. d4 {[%clk 0:03:02.6]}
2... d5 {[%clk 0:02:59.6]} 3. Bd3 {[%clk 0:03:04.2]} 3... dxe4 {[%clk
0:02:59.2]} 4. Bxe4 {[%clk 0:03:06.1]} 4... Nf6 {[%clk 0:03:00.7]} 5. Bf3 {[%clk
0:03:07.6]} 5... Nbd7 {[%clk 0:03:02.1]} 6. Nc3 {[%clk 0:02:57]} 6... Bd6 {[%clk
0:03:02.3]} 7. Nge2 {[%clk 0:02:56.1]} 7... O-O {[%clk 0:03:03.1]} 8. O-O {[%clk
0:02:49.6]} 8... e5 {[%clk 0:03:04.2]} 9. Bg5 {[%clk 0:02:50.8]} 9... h6 {[%clk
0:03:03.4]} 10. Bh4 {[%clk 0:02:52.1]} 10... c6 {[%clk 0:02:44.4]} 11. h3 {[%clk
0:02:51.2]} 11... Qc7 {[%clk 0:02:40.9]} 12. Bg3 {[%clk 0:02:44.4]} 12... exd4
{[%clk 0:02:35.8]} 13. Qxd4 {[%clk 0:02:38.4]} 13... Ne5 {[%clk 0:02:31]} 14.
Be4 {[%clk 0:02:07.6]} 14... Be6 {[%clk 0:02:04.2]} 15. Rad1 {[%clk 0:02:05.8]}
15... Rad8 {[%clk 0:02:03.3]} 16. Qxa7 {[%clk 0:02:02.7]} 16... Nc4 {[%clk
0:01:08.2]} 17. Bxd6 {[%clk 0:01:59.1]} 17... Rxd6 {[%clk 0:01:10.1]} 18. Rxd6
{[%clk 0:01:57.1]} 18... Qxd6 {[%clk 0:01:10.8]} 19. Qd4 {[%clk 0:01:44.1]}
19... Qxd4 {[%clk 0:01:07.9]} 20. Nxd4 {[%clk 0:01:46]} 20... Nxe4 {[%clk
0:01:08.5]} 21. Nxe4 {[%clk 0:01:47.9]} 21... Nxb2 {[%clk 0:01:10.1]} 22. Nxe6
{[%clk 0:01:30.9]} 22... fxe6 {[%clk 0:01:12]} 23. Rb1 {[%clk 0:01:32.5]} 23...
Nc4 {[%clk 0:01:02.3]} 24. Rxb7 {[%clk 0:01:31.5]} 24... Ra8 {[%clk 0:01:03.5]}
25. Nc5 {[%clk 0:01:31.9]} 25... Rxa2 {[%clk 0:00:56]} 26. Nxe6 {[%clk
0:01:33.2]} 26... Nd2 {[%clk 0:00:56.5]} 27. Rxg7+ {[%clk 0:01:32]} 27... Kh8
{[%clk 0:00:57.5]} 28. h4 {[%clk 0:01:06.3]} 28... Rxc2 {[%clk 0:00:38.7]} 29.
Rg6 {[%clk 0:00:58.1]} 29... Ne4 {[%clk 0:00:34.3]} 30. f3 {[%clk 0:00:51.2]}
30... Nd6 {[%clk 0:00:29.3]} 31. Rxh6+ {[%clk 0:00:47.7]} 31... Kg8 {[%clk
0:00:30.5]} 32. Nd4 {[%clk 0:00:48.3]} 32... Rc1+ {[%clk 0:00:31.1]} 33. Kh2
{[%clk 0:00:49.6]} 33... Nf7 {[%clk 0:00:28.5]} 34. Rxc6 {[%clk 0:00:50.4]}
34... Rd1 {[%clk 0:00:30.4]} 35. Nf5 {[%clk 0:00:51.2]} 35... Rd2 {[%clk
0:00:31.3]} 36. Nh6+ {[%clk 0:00:42.3]} 36... Nxh6 {[%clk 0:00:31.4]} 37. Rxh6
{[%clk 0:00:44.2]} 37... Kg7 {[%clk 0:00:33.1]} 38. Rh5 {[%clk 0:00:45.2]} 38...
Kg6 {[%clk 0:00:33.4]} 39. Rg5+ {[%clk 0:00:46.8]} 39... Kh6 {[%clk 0:00:35.3]}
40. Kh3 {[%clk 0:00:47.7]} 40... Rd1 {[%clk 0:00:36.8]} 41. Ra5 {[%clk
0:00:48.1]} 41... Rd4 {[%clk 0:00:37.4]} 42. g4 {[%clk 0:00:48.4]} 42... Rd3
{[%clk 0:00:38.4]} 43. Kg3 {[%clk 0:00:49.4]} 43... Rb3 {[%clk 0:00:40.1]} 44.
Ra6+ {[%clk 0:00:50.7]} 44... Kg7 {[%clk 0:00:41.4]} 45. g5 {[%clk 0:00:52.1]}
45... Rb4 {[%clk 0:00:42.5]} 1-0

[Event "*** Titled Tuesday Blitz"]
[Site "Chess.com"]
[Date "2018.12.04"]
[Round "5"]
[White "TheBigBadChessDad"]
[Black "M1711"]
[Result "0-1"]
[WhiteElo "2272"]
[BlackElo "2476"]
[TimeControl "180+2"]
[EndTime "14:06:20 PST"]
[Termination "M1711 won on time"]

1. d4 {[%clk 0:03:01.9]} 1... Nf6 {[%clk 0:02:57.4]} 2. Nf3 {[%clk 0:03:02.8]}
2... e6 {[%clk 0:02:51]} 3. Bf4 {[%clk 0:03:03.2]} 3... d5 {[%clk 0:02:36.8]} 4.
e3 {[%clk 0:03:04.4]} 4... c5 {[%clk 0:02:38.3]} 5. c3 {[%clk 0:03:05.4]} 5...
Nc6 {[%clk 0:02:33.4]} 6. Nbd2 {[%clk 0:03:06.2]} 6... cxd4 {[%clk 0:02:34.8]}
7. cxd4 {[%clk 0:03:05.6]} 7... Be7 {[%clk 0:02:33.9]} 8. a3 {[%clk 0:03:03]}
8... O-O {[%clk 0:02:33.5]} 9. h3 {[%clk 0:03:02.6]} 9... Bd7 {[%clk 0:02:34]}
10. Bd3 {[%clk 0:03:03.1]} 10... Rc8 {[%clk 0:02:34.8]} 11. Rc1 {[%clk
0:03:03.4]} 11... a6 {[%clk 0:02:34.3]} 12. O-O {[%clk 0:03:03]} 12... Qb6
{[%clk 0:02:27.4]} 13. b4 {[%clk 0:03:02.5]} 13... Na7 {[%clk 0:02:16.9]} 14.
Ne5 {[%clk 0:02:50.8]} 14... Bb5 {[%clk 0:02:08.5]} 15. Qb3 {[%clk 0:02:37.1]}
15... Bxd3 {[%clk 0:02:02.5]} 16. Nxd3 {[%clk 0:02:29.9]} 16... Nb5 {[%clk
0:02:02.2]} 17. Nc5 {[%clk 0:02:15.2]} 17... Qa7 {[%clk 0:01:49.2]} 18. Rc2
{[%clk 0:01:56]} 18... b6 {[%clk 0:01:47.5]} 19. Na4 {[%clk 0:01:56.8]} 19...
Rxc2 {[%clk 0:01:42.9]} 20. Qxc2 {[%clk 0:01:55.2]} 20... Nxa3 {[%clk
0:01:43.9]} 21. Qb3 {[%clk 0:01:35.5]} 21... Nb5 {[%clk 0:01:31.1]} 22. Rc1
{[%clk 0:01:35.4]} 22... Qb7 {[%clk 0:01:24.5]} 23. Nf3 {[%clk 0:01:19.5]} 23...
Ne4 {[%clk 0:01:08.7]} 24. Ne5 {[%clk 0:01:07.6]} 24... Rc8 {[%clk 0:01:01.1]}
25. Rxc8+ {[%clk 0:01:06.3]} 25... Qxc8 {[%clk 0:01:03]} 26. f3 {[%clk
0:01:03.5]} 26... Qc1+ {[%clk 0:00:59]} 27. Kh2 {[%clk 0:01:03.2]} 27... Nd2
{[%clk 0:00:59.7]} 28. Qd3 {[%clk 0:00:46.6]} 28... Nf1+ {[%clk 0:00:58.3]} 29.
Kg1 {[%clk 0:00:40.7]} 29... Nxe3+ {[%clk 0:00:50.9]} 30. Kf2 {[%clk 0:00:35.3]}
30... Nd1+ {[%clk 0:00:37.8]} 31. Kg3 {[%clk 0:00:21.4]} 31... Bh4+ {[%clk
0:00:32.6]} 32. Kxh4 {[%clk 0:00:14.7]} 32... Qxf4+ {[%clk 0:00:33.1]} 33. g4
{[%clk 0:00:14.6]} 33... Ne3 {[%clk 0:00:16.7]} 0-1

[Event "*** Titled Tuesday Blitz"]
[Site "Chess.com"]
[Date "2018.12.04"]
[Round "5"]
[White "Vamostodorecto"]
[Black "snowlord"]
[Result "0-1"]
[WhiteElo "2416"]
[BlackElo "2639"]
[TimeControl "180+2"]
[EndTime "14:06:22 PST"]
[Termination "snowlord won by checkmate"]

1. d4 {[%clk 0:03:01.9]} 1... Nf6 {[%clk 0:03:00.8]} 2. c4 {[%clk 0:03:02]} 2...
e6 {[%clk 0:03:02.3]} 3. Nc3 {[%clk 0:03:02.4]} 3... Bb4 {[%clk 0:03:03]} 4. e3
{[%clk 0:03:02.5]} 4... O-O {[%clk 0:03:04.1]} 5. a3 {[%clk 0:03:03.7]} 5...
Bxc3+ {[%clk 0:03:04.8]} 6. bxc3 {[%clk 0:03:05.6]} 6... b6 {[%clk 0:03:06.6]}
7. Bd3 {[%clk 0:03:06.6]} 7... Ba6 {[%clk 0:03:08]} 8. Ne2 {[%clk 0:03:06]} 8...
d5 {[%clk 0:03:09.6]} 9. cxd5 {[%clk 0:03:06.3]} 9... Qxd5 {[%clk 0:03:09.7]}
10. O-O {[%clk 0:03:04.7]} 10... Bxd3 {[%clk 0:03:10.6]} 11. Qxd3 {[%clk
0:03:04.9]} 11... c5 {[%clk 0:03:12.5]} 12. f3 {[%clk 0:03:01.9]} 12... cxd4
{[%clk 0:03:07]} 13. cxd4 {[%clk 0:03:03.8]} 13... Rc8 {[%clk 0:03:05]} 14. e4
{[%clk 0:02:58.9]} 14... Qc4 {[%clk 0:03:05.3]} 15. Qe3 {[%clk 0:02:50.9]} 15...
Nc6 {[%clk 0:03:02.5]} 16. Bb2 {[%clk 0:02:45.8]} 16... Qb5 {[%clk 0:03:03.4]}
17. Rab1 {[%clk 0:02:42.5]} 17... Na5 {[%clk 0:03:03.3]} 18. d5 {[%clk
0:02:32.6]} 18... Nc4 {[%clk 0:03:01.1]} 19. Qd3 {[%clk 0:02:32.6]} 19... Qc5+
{[%clk 0:02:39.3]} 20. Bd4 {[%clk 0:02:32.8]} 20... Qxa3 {[%clk 0:02:40.5]} 21.
Rb3 {[%clk 0:02:30.4]} 21... Qe7 {[%clk 0:02:42]} 22. dxe6 {[%clk 0:02:05.7]}
22... fxe6 {[%clk 0:02:38.6]} 23. f4 {[%clk 0:01:59.5]} 23... Na5 {[%clk
0:02:12.7]} 24. Rb5 {[%clk 0:01:55.3]} 24... Nc6 {[%clk 0:02:09.7]} 25. Bb2
{[%clk 0:01:53]} 25... a6 {[%clk 0:02:08.2]} 26. Rg5 {[%clk 0:01:52.8]} 26...
Nb4 {[%clk 0:01:52]} 27. Qh3 {[%clk 0:01:36.6]} 27... Rc2 {[%clk 0:01:48.2]} 28.
Bxf6 {[%clk 0:01:10.4]} 28... Qxf6 {[%clk 0:01:50.1]} 29. e5 {[%clk 0:01:04.5]}
29... Qe7 {[%clk 0:01:22.2]} 30. Nd4 {[%clk 0:01:02.7]} 30... Qc5 {[%clk
0:01:14.1]} 31. Qxe6+ {[%clk 0:01:03.4]} 31... Kh8 {[%clk 0:01:15.2]} 32. Rd1
{[%clk 0:01:03.1]} 32... Rc1 {[%clk 0:00:49.2]} 33. Rxc1 {[%clk 0:01:00.1]}
33... Qxc1+ {[%clk 0:00:47.8]} 34. Kf2 {[%clk 0:01:01.7]} 34... Nd3+ {[%clk
0:00:44]} 35. Kf3 {[%clk 0:00:44]} 35... Qxf4+ {[%clk 0:00:42.8]} 36. Ke2 {[%clk
0:00:45.7]} 36... Nc1+ {[%clk 0:00:27.8]} 37. Kd1 {[%clk 0:00:46.7]} 37... Qxg5
{[%clk 0:00:29.1]} 38. Qc6 {[%clk 0:00:47.9]} 38... Rf8 {[%clk 0:00:28]} 39. Ne6
{[%clk 0:00:45.6]} 39... Rf1+ {[%clk 0:00:28.4]} 40. Kc2 {[%clk 0:00:45.3]}
40... Qf5+ {[%clk 0:00:29.8]} 41. Kc3 {[%clk 0:00:41.5]} 41... Qxe5+ {[%clk
0:00:29.9]} 42. Kc2 {[%clk 0:00:41.1]} 42... Rf2+ {[%clk 0:00:29.9]} 43. Kxc1
{[%clk 0:00:41.8]} 43... Qa1# {[%clk 0:00:29.9]} 0-1

[Event "*** Titled Tuesday Blitz"]
[Site "Chess.com"]
[Date "2018.12.04"]
[Round "5"]
[White "SCIM"]
[Black "ENEASZ"]
[Result "0-1"]
[WhiteElo "2430"]
[BlackElo "2608"]
[TimeControl "180+2"]
[EndTime "14:06:27 PST"]
[Termination "ENEASZ won by resignation"]

1. d4 {[%clk 0:03:01.9]} 1... Nf6 {[%clk 0:02:58.9]} 2. c4 {[%clk 0:03:00.5]}
2... e6 {[%clk 0:02:57.7]} 3. Nc3 {[%clk 0:03:00.4]} 3... d5 {[%clk 0:02:58.7]}
4. g3 {[%clk 0:02:56.8]} 4... Be7 {[%clk 0:02:58.3]} 5. Bg2 {[%clk 0:02:56.9]}
5... O-O {[%clk 0:02:59.3]} 6. Nf3 {[%clk 0:02:56.5]} 6... dxc4 {[%clk
0:02:56.6]} 7. O-O {[%clk 0:02:55.9]} 7... c5 {[%clk 0:02:56]} 8. dxc5 {[%clk
0:02:50.8]} 8... Bxc5 {[%clk 0:02:57.9]} 9. Ne5 {[%clk 0:02:48.9]} 9... Qe7
{[%clk 0:02:54.7]} 10. Nxc4 {[%clk 0:02:43.3]} 10... Nc6 {[%clk 0:02:54.5]} 11.
a3 {[%clk 0:02:35.6]} 11... Rd8 {[%clk 0:02:53.7]} 12. Qc2 {[%clk 0:02:34.3]}
12... a5 {[%clk 0:02:52.9]} 13. Bg5 {[%clk 0:02:29.9]} 13... h6 {[%clk
0:02:45.9]} 14. Bxf6 {[%clk 0:02:29.7]} 14... Qxf6 {[%clk 0:02:47.8]} 15. Ne4
{[%clk 0:02:19]} 15... Qe7 {[%clk 0:02:47.5]} 16. Nxc5 {[%clk 0:02:02.4]} 16...
Qxc5 {[%clk 0:02:49.4]} 17. Rac1 {[%clk 0:01:49.9]} 17... Bd7 {[%clk 0:02:48.4]}
18. e3 {[%clk 0:01:44.7]} 18... Rac8 {[%clk 0:02:43.9]} 19. Nd2 {[%clk
0:01:27.3]} 19... Qb5 {[%clk 0:02:29.1]} 20. Qb3 {[%clk 0:01:23.8]} 20... Qxb3
{[%clk 0:02:23.5]} 21. Nxb3 {[%clk 0:01:24]} 21... b6 {[%clk 0:02:25.4]} 22.
Rfd1 {[%clk 0:01:21.7]} 22... Ne5 {[%clk 0:01:58.6]} 23. Rd4 {[%clk 0:00:45.5]}
23... Rxc1+ {[%clk 0:01:51.4]} 24. Nxc1 {[%clk 0:00:45.7]} 24... Rc8 {[%clk
0:01:53.3]} 25. Rd1 {[%clk 0:00:38.6]} 25... Ba4 {[%clk 0:01:52.5]} 26. Re1
{[%clk 0:00:34.9]} 26... Rc2 {[%clk 0:01:51.5]} 27. b3 {[%clk 0:00:33.8]} 27...
Bb5 {[%clk 0:01:51.5]} 28. f4 {[%clk 0:00:30.7]} 28... Nd7 {[%clk 0:01:41.1]}
29. a4 {[%clk 0:00:28.4]} 29... Ba6 {[%clk 0:01:39.8]} 30. Rd1 {[%clk
0:00:25.1]} 30... Nc5 {[%clk 0:01:39]} 31. Bf3 {[%clk 0:00:18]} 31... g6 {[%clk
0:01:38.1]} 32. h3 {[%clk 0:00:14.6]} 32... h5 {[%clk 0:01:38.2]} 33. g4 {[%clk
0:00:15.1]} 33... h4 {[%clk 0:01:39.5]} 34. g5 {[%clk 0:00:15.6]} 34... Kg7
{[%clk 0:01:41]} 35. Bg2 {[%clk 0:00:15.7]} 35... Rb2 {[%clk 0:01:39.7]} 36. Bf3
{[%clk 0:00:13.2]} 36... Nxb3 {[%clk 0:01:38.6]} 37. Nxb3 {[%clk 0:00:14]} 37...
Rxb3 {[%clk 0:01:40.5]} 38. Kf2 {[%clk 0:00:15.2]} 38... Rb2+ {[%clk 0:01:40.7]}
39. Kg1 {[%clk 0:00:15.8]} 39... Rb3 {[%clk 0:01:39.7]} 40. Kf2 {[%clk
0:00:16.4]} 40... Rb2+ {[%clk 0:01:36.3]} 41. Kg1 {[%clk 0:00:16.7]} 41... Bc4
{[%clk 0:01:20.6]} 42. Rd6 {[%clk 0:00:15.5]} 42... b5 {[%clk 0:01:11.2]} 43.
axb5 {[%clk 0:00:16.1]} 43... Bxb5 {[%clk 0:01:13.1]} 44. Rd8 {[%clk 0:00:13.4]}
44... a4 {[%clk 0:01:13.1]} 45. Ra8 {[%clk 0:00:14.9]} 45... Rb1+ {[%clk
0:01:09.5]} 46. Kf2 {[%clk 0:00:15.4]} 46... Rf1+ {[%clk 0:01:10.3]} 47. Kg2
{[%clk 0:00:14.3]} 47... Rxf3 {[%clk 0:01:12.2]} 48. Ra5 {[%clk 0:00:12]} 48...
Bc6 {[%clk 0:01:06.6]} 0-1

[Event "*** Titled Tuesday Blitz"]
[Site "Chess.com"]
[Date "2018.12.04"]
[Round "5"]
[White "Dr-Bassem"]
[Black "1e41-0"]
[Result "1-0"]
[WhiteElo "2740"]
[BlackElo "2495"]
[TimeControl "180+2"]
[EndTime "14:06:28 PST"]
[Termination "Dr-Bassem won by resignation"]

1. e4 {[%clk 0:03:01.9]} 1... e6 {[%clk 0:03:01.4]} 2. d3 {[%clk 0:03:02.7]}
2... d5 {[%clk 0:03:03]} 3. Nd2 {[%clk 0:03:04.3]} 3... Nf6 {[%clk 0:03:04.3]}
4. Ngf3 {[%clk 0:03:05.9]} 4... c5 {[%clk 0:03:05.9]} 5. g3 {[%clk 0:03:07.4]}
5... Nc6 {[%clk 0:03:07.4]} 6. Bg2 {[%clk 0:03:09.1]} 6... g6 {[%clk 0:03:08.7]}
7. O-O {[%clk 0:03:10.5]} 7... Bg7 {[%clk 0:03:10.2]} 8. Re1 {[%clk 0:03:12.1]}
8... O-O {[%clk 0:03:11.4]} 9. c3 {[%clk 0:03:13.6]} 9... a5 {[%clk 0:03:11.7]}
10. a4 {[%clk 0:03:14.3]} 10... b6 {[%clk 0:03:12]} 11. Nb1 {[%clk 0:03:15.9]}
11... Ba6 {[%clk 0:03:09]} 12. e5 {[%clk 0:03:17.1]} 12... Ng4 {[%clk
0:03:08.3]} 13. Bf4 {[%clk 0:03:18.1]} 13... f6 {[%clk 0:02:26.5]} 14. exf6
{[%clk 0:03:15.4]} 14... Qxf6 {[%clk 0:02:28.4]} 15. Qd2 {[%clk 0:02:13.6]}
15... e5 {[%clk 0:01:32.4]} 16. Bg5 {[%clk 0:02:07.8]} 16... Qd6 {[%clk
0:01:30.7]} 17. h3 {[%clk 0:02:03.3]} 17... Nf6 {[%clk 0:01:31.9]} 18. Na3
{[%clk 0:02:03.7]} 18... Rae8 {[%clk 0:01:29.7]} 19. Nb5 {[%clk 0:02:04.1]}
19... Qd7 {[%clk 0:01:27.6]} 20. Rad1 {[%clk 0:01:49.8]} 20... Rf7 {[%clk
0:00:59.6]} 21. c4 {[%clk 0:01:45.6]} 21... Nd4 {[%clk 0:00:43.6]} 22. Nxe5
{[%clk 0:01:37.6]} 22... Rxe5 {[%clk 0:00:44.2]} 23. Rxe5 {[%clk 0:01:39]} 23...
Bxb5 {[%clk 0:00:41.8]} 24. axb5 {[%clk 0:01:39.2]} 24... Ne4 {[%clk 0:00:34.4]}
25. Rxe4 {[%clk 0:00:58.5]} 25... dxe4 {[%clk 0:00:34.6]} 26. dxe4 {[%clk
0:00:59.8]} 26... Qe6 {[%clk 0:00:31]} 27. Qd3 {[%clk 0:00:56.7]} 27... h6
{[%clk 0:00:30]} 28. Be3 {[%clk 0:00:55.9]} 28... g5 {[%clk 0:00:30.6]} 29. e5
{[%clk 0:00:42.2]} 29... Kh8 {[%clk 0:00:17.8]} 30. Bxd4 {[%clk 0:00:40]} 30...
cxd4 {[%clk 0:00:16.7]} 31. Bd5 {[%clk 0:00:40.2]} 31... Qe7 {[%clk 0:00:17.6]}
32. Bxf7 {[%clk 0:00:40.1]} 32... Qxf7 {[%clk 0:00:19.5]} 33. Qxd4 {[%clk
0:00:41]} 33... Qf3 {[%clk 0:00:19.5]} 34. Qd8+ {[%clk 0:00:41.2]} 34... Bf8
{[%clk 0:00:20]} 35. Qf6+ {[%clk 0:00:41.9]} 35... Qxf6 {[%clk 0:00:20.1]} 36.
exf6 {[%clk 0:00:43.8]} 36... Kh7 {[%clk 0:00:21.6]} 37. Rd8 {[%clk 0:00:43.1]}
37... Bc5 {[%clk 0:00:22.7]} 38. Rd7+ {[%clk 0:00:34]} 38... Kg6 {[%clk
0:00:23.4]} 39. f7 {[%clk 0:00:35.4]} 39... Kg7 {[%clk 0:00:25]} 40. b3 {[%clk
0:00:31.6]} 40... h5 {[%clk 0:00:25]} 41. g4 {[%clk 0:00:32]} 41... hxg4 {[%clk
0:00:25.4]} 42. hxg4 {[%clk 0:00:33.9]} 42... Kf8 {[%clk 0:00:26]} 43. Kg2
{[%clk 0:00:34.3]} 43... Kg7 {[%clk 0:00:27.2]} 44. Kg3 {[%clk 0:00:33]} 1-0